bitfinex-derivatives/quotes_BTCF0:USTF0_20210406
["timestamp","ask_amount","ask_price","bid_price","bid_amount"]
[1617718343331,0.10725655,57755.0,57754.0,0.37725655]
[1617718343738,0.10725655,57755.0,57754.0,0.42905655]
[1617718343932,0.10725655,57755.0,57754.0,0.37725655]
[1617718344331,1.10725655,57755.0,57754.0,0.37725655]
[1617718344532,1.10725655,57755.0,57754.0,0.10623168]
[1617718344833,0.10725655,57755.0,57754.0,0.10623168]
[1617718345835,1.0521,57766.0,57754.0,0.37623168]
[1617718346037,0.0521,57766.0,57754.0,0.52370168]
[1617718346237,1.0,57761.0,57754.0,0.52370168]
[1617718346552,1.0,57763.0,57760.0,0.10725655]
[1617718346836,0.10725655,57768.0,57761.0,0.27]
[1617718348040,1.0,57764.0,57761.0,0.27]
[1617718348251,0.10725655,57768.0,57761.0,0.27]
[1617718348449,0.10725655,57768.0,57767.0,0.10725655]
[1617718348940,1.10725655,57768.0,57767.0,0.05600703]
[1617718349139,0.10725655,57768.0,57767.0,0.05600703]
[1617718349841,0.10725655,57768.0,57767.0,0.32600703]
[1617718350043,0.10725655,57768.0,57767.0,0.37810703]
[1617718350642,0.10725655,57768.0,57767.0,0.32600703]
[1617718350842,0.00184889,57778.0,57767.0,0.32600703]
[1617718351042,0.00184889,57778.0,57768.0,1.5]
[1617718351343,0.00184889,57778.0,57769.0,0.57279]
[1617718351744,0.0018498,57780.0,57769.0,0.57279]
[1617718352143,1.0,57786.0,57769.0,0.57279]
[1617718352343,0.00185232,57789.0,57772.0,1.0]
[1617718352546,0.05385281,57790.0,57788.0,0.22006655]
[1617718352743,0.05385281,57790.0,57788.0,0.23006655]
[1617718353143,0.31664972,57790.0,57788.0,0.12759481]
[1617718353344,0.05385237,57790.0,57788.0,0.12759481]
[1617718353745,1.0,57789.0,57788.0,0.12759481]
[1617718354146,0.00185453,57796.0,57788.0,0.12759481]
[1617718354545,0.10725655,57789.0,57788.0,0.12759481]
[1617718355346,0.10725655,57789.0,57788.0,0.12657022]
[1617718355547,0.0018545,57797.0,57789.0,1.5]
[1617718355947,0.0018545,57797.0,57790.0,1.27]
[1617718356449,0.26703544,57791.0,57789.0,0.27]
[1617718356848,0.26703544,57791.0,57790.0,1.0]
[1617718357053,0.26703544,57791.0,57790.0,1.27]
[1617718357348,0.26703544,57791.0,57788.0,0.11281]
[1617718357349,0.26703544,57791.0,57789.0,0.27]
[1617718357550,0.00454007,57791.0,57788.0,0.11281]
[1617718357751,0.00454007,57791.0,57790.0,0.27]
[1617718358051,0.00187091,57794.0,57790.0,1.0]
[1617718358250,0.00187091,57794.0,57790.0,1.27]
[1617718358550,0.00187091,57794.0,57793.0,0.10725655]
[1617718358751,0.00187091,57794.0,57793.0,0.37725655]
[1617718358952,0.05387137,57795.0,57793.0,0.37725655]
[1617718359756,0.32051573,57796.0,57793.0,0.37725655]
[1617718359953,0.32051573,57796.0,57795.0,0.27]
[1617718360154,0.45891573,57796.0,57795.0,0.27]
[1617718360455,0.45891573,57796.0,57795.0,1.27]
[1617718360654,0.1898,57796.0,57794.0,0.27]
[1617718360855,0.1898,57796.0,57795.0,1.27]
[1617718361054,0.1898,57796.0,57795.0,1.47]
[1617718361055,0.77855681,57796.0,57795.0,1.47]
[1617718361355,0.72715681,57796.0,57793.0,0.10725655]
[1617718361553,0.72715681,57796.0,57795.0,0.27]
[1617718361756,0.72715681,57796.0,57793.0,0.10725655]
[1617718361757,0.26762484,57796.0,57794.0,0.27]
[1617718361954,0.26762484,57796.0,57795.0,1.0]
[1617718362156,0.26762484,57796.0,57795.0,1.27]
[1617718362358,0.26799473,57797.0,57795.0,2.97]
[1617718362556,0.32157581,57800.0,57795.0,2.7]
[1617718362856,0.32157581,57800.0,57797.0,1.7]
[1617718363063,0.00187639,57799.0,57797.0,6.7]
[1617718363254,0.00187639,57799.0,57797.0,6.97]
[1617718363456,0.39323735,57810.0,57799.0,0.2]
[1617718363757,0.39376713,57818.0,57800.0,1.5]
[1617718364057,0.39376713,57818.0,57817.0,1.0]
[1617718364255,0.39414732,57821.0,57817.0,1.14445]
[1617718364455,0.39414732,57821.0,57817.0,0.41445]
[1617718364660,0.39414732,57821.0,57820.0,1.80725655]
[1617718364858,0.1384,57821.0,57820.0,2.80725655]
[1617718365158,0.39436015,57823.0,57820.0,2.07725655]
[1617718365457,0.1384,57821.0,57820.0,3.07725655]
[1617718365760,0.39479228,57830.0,57820.0,0.57623232]
[1617718365958,0.39479228,57830.0,57821.0,1.5]
[1617718366158,0.39449779,57827.0,57822.0,0.2]
[1617718366358,0.39449779,57827.0,57826.0,1.0]
[1617718366659,0.39496438,57833.0,57826.0,1.0]
[1617718366860,0.39496438,57833.0,57822.0,1.97]
[1617718366861,0.39496438,57833.0,57830.0,0.86145358]
[1617718367162,0.39523765,57840.0,57832.0,1.0]
[1617718367560,0.39523765,57840.0,57832.0,0.27]
[1617718368061,0.39536369,57841.0,57839.0,1.0]
[1617718368263,0.24565655,57842.0,57840.0,1.0]
[1617718368459,0.24565655,57842.0,57840.0,1.01]
[1617718368659,0.1895,57842.0,57841.0,0.10725655]
[1617718368960,0.1895,57842.0,57841.0,1.37725655]
[1617718369259,1.04110941,57842.0,57841.0,1.37725655]
[1617718369459,0.99000941,57842.0,57841.0,1.37725655]
[1617718369962,0.53703146,57842.0,57841.0,1.37725655]
[1617718370460,0.58943146,57842.0,57841.0,1.37725655]
[1617718371063,0.58943146,57842.0,57841.0,0.37725655]
[1617718371265,0.53703146,57842.0,57841.0,1.37725655]
[1617718371466,0.1384,57842.0,57841.0,1.37725655]
[1617718371766,0.5373863,57842.0,57841.0,1.37725655]
[1617718372267,0.1384,57842.0,57841.0,1.37725655]
[1617718372468,0.1384,57842.0,57841.0,0.37725655]
[1617718372970,0.1384,57842.0,57841.0,1.37725655]
[1617718374268,0.1384,57842.0,57841.0,0.37725655]
[1617718374468,0.1384,57842.0,57841.0,1.37725655]
[1617718375570,0.1384,57842.0,57841.0,2.87725655]
[1617718375971,0.1384,57842.0,57841.0,1.87725655]
[1617718376274,0.1173,57842.0,57841.0,7.87725655]
[1617718377879,0.1011,57842.0,57841.0,7.87725655]
[1617718378375,0.082,57842.0,57841.0,7.87725655]
[1617718378577,0.082,57842.0,57841.0,1.87725655]
[1617718379075,0.082,57842.0,57841.0,7.87725655]
[1617718379374,0.0597,57842.0,57841.0,8.07725655]
[1617718379575,0.0347,57842.0,57841.0,8.07725655]
[1617718379775,0.39596609,57894.0,57841.0,8.07725655]
[1617718380177,0.86892902,57896.0,57883.0,1.0]
[1617718380375,0.1386,57884.0,57883.0,1.09939]
[1617718380575,0.1386,57884.0,57883.0,0.09939]
[1617718380976,0.1386,57884.0,57883.0,0.36939]
[1617718381276,0.1386,57884.0,57883.0,1.36939]
[1617718381578,0.1908,57884.0,57883.0,1.36939]
[1617718381775,0.1908,57884.0,57883.0,0.36939]
[1617718381978,0.1386,57884.0,57883.0,0.36939]
[1617718382177,0.1386,57884.0,57883.0,0.36836689]
[1617718382579,0.1386,57884.0,57883.0,0.47562344]
[1617718383382,0.1386,57884.0,57883.0,1.47562344]
[1617718383580,0.1386,57884.0,57883.0,0.47562344]
[1617718383881,0.1386,57884.0,57883.0,1.47562344]
[1617718384282,0.1902,57884.0,57883.0,0.47562344]
[1617718384581,0.29745655,57884.0,57883.0,1.47562344]
[1617718384784,0.29745655,57884.0,57883.0,0.47562344]
[1617718385585,0.1386,57884.0,57883.0,0.47562344]
[1617718385785,0.1386,57884.0,57883.0,1.47562344]
[1617718386283,0.1386,57884.0,57883.0,2.97562344]
[1617718386483,0.39398163,57926.0,57883.0,2.97562344]
[1617718386684,0.0515,57925.0,57883.0,2.97562344]
[1617718386995,1.5,57939.0,57883.0,2.97562344]
[1617718386996,0.1382,57884.0,57883.0,1.97562344]
[1617718387482,0.39495036,57940.0,57883.0,7.97562344]
[1617718387683,0.39495036,57940.0,57883.0,8.17562344]
[1617718387984,0.39516654,57943.0,57937.0,1.0]
[1617718388184,0.1378,57938.0,57937.0,0.11874]
[1617718388586,0.1378,57938.0,57937.0,0.22599655]
[1617718388785,0.1378,57938.0,57937.0,1.39373679]
[1617718388986,0.1378,57938.0,57937.0,1.34260651]
[1617718391087,0.0509,57956.0,57937.0,1.34260651]
[1617718391288,0.32429052,57963.0,57937.0,3.04260651]
[1617718391487,0.32429052,57963.0,57937.0,2.16180651]
[1617718391689,0.32429052,57963.0,57937.0,1.94490651]
[1617718391888,0.0516,57962.0,57955.0,0.9945]
[1617718392087,0.10725655,57969.0,57955.0,1.10953]
[1617718392289,0.10725655,57969.0,57956.0,0.256]
[1617718392488,0.10725655,57969.0,57962.0,1.0]
[1617718392688,0.10725655,57969.0,57968.0,0.10725655]
[1617718393089,0.10725655,57969.0,57968.0,0.12725655]
[1617718393489,0.15865655,57969.0,57968.0,0.12725655]
[1617718393691,0.10725655,57969.0,57968.0,0.02]
[1617718394090,0.10725655,57969.0,57937.0,0.1192]
[1617718394091,0.10725655,57969.0,57960.0,0.27]
[1617718394292,0.10725655,57969.0,57953.0,0.01]
[1617718394589,0.10725655,57969.0,57961.0,0.01]
[1617718394789,1.0,57967.0,57961.0,0.01]
[1617718394992,1.10725655,57969.0,57955.0,0.10725655]
[1617718395195,1.0,57963.0,57955.0,0.10725655]
[1617718395394,1.0,57959.0,57956.0,0.27]
[1617718395692,1.60507,57959.0,57923.0,3.0227]
[1617718395893,1.60507,57959.0,57885.0,0.49769715]
[1617718395894,1.5,57956.0,57899.0,1.0]
[1617718396091,1.5,57956.0,57883.0,0.29527037]
[1617718396092,1.0,57931.0,57900.0,1.0]
[1617718396292,1.0,57921.0,57899.0,0.27]
[1617718396693,1.0,57921.0,57911.0,0.10725655]
[1617718396898,1.0,57919.0,57911.0,0.10725655]
[1617718397095,1.12843,57919.0,57911.0,0.10725655]
[1617718397398,1.0,57916.0,57911.0,0.10725655]
[1617718397596,1.0,57912.0,57911.0,0.10725655]
[1617718398196,1.0,57916.0,57911.0,0.10725655]
[1617718398898,0.10725655,57912.0,57911.0,0.10725655]
[1617718401798,0.10725655,57912.0,57911.0,0.37725655]
[1617718402400,0.15895655,57912.0,57911.0,0.37725655]
[1617718402600,0.10725655,57912.0,57911.0,0.37725655]
[1617718403500,0.10725655,57912.0,57911.0,0.10725655]
[1617718406502,0.10725655,57912.0,57911.0,0.37725655]
[1617718406703,0.10725655,57920.0,57911.0,0.37725655]
[1617718406904,0.10725655,57920.0,57911.0,0.53079655]
[1617718407803,1.0,57946.0,57917.0,1.0]
[1617718408103,1.9445,57947.0,57918.0,1.27]
[1617718408303,0.9445,57947.0,57919.0,1.0]
[1617718408704,0.9445,57947.0,57946.0,0.10725655]
[1617718409104,0.4798,57947.0,57946.0,0.10725655]
[1617718409907,0.4798,57947.0,57946.0,0.37725655]
[1617718410708,0.58705655,57947.0,57946.0,0.37725655]
[1617718412018,0.10725655,57947.0,57946.0,0.37725655]
[1617718412512,1.052,57971.0,57946.0,0.37725655]
[1617718412710,0.052,57971.0,57970.0,0.10725655]
[1617718413011,1.0,57974.0,57970.0,0.10725655]
[1617718413210,1.0,57975.0,57971.0,0.27]
[1617718413411,1.0,57977.0,57971.0,0.27]
[1617718414413,1.0,57980.0,57971.0,0.27]
[1617718414614,0.4897,57990.0,57971.0,0.37717]
[1617718414813,0.4897,57990.0,57988.0,0.10725655]
[1617718415018,1.4897,57990.0,57988.0,0.10725655]
[1617718415215,0.4897,57990.0,57988.0,0.10725655]
[1617718415616,0.4897,57990.0,57988.0,0.1062348]
[1617718415817,1.0,57989.0,57988.0,0.1062348]
[1617718416015,0.4897,57990.0,57988.0,0.1062348]
[1617718416515,0.4897,57990.0,57988.0,0.3762348]
[1617718416716,0.4897,57990.0,57988.0,0.4814248]
[1617718419419,0.4897,57990.0,57988.0,0.3762348]
[1617718420021,1.9897,57990.0,57988.0,0.1062348]
[1617718420224,1.0,57989.0,57959.0,2.8935]
[1617718420422,1.0,57989.0,57949.0,1.0]
[1617718420621,1.0,57979.0,57950.0,1.0]
[1617718420824,0.10725655,57961.0,57960.0,0.27]
[1617718421020,0.24490655,57961.0,57959.0,0.10725655]
[1617718421522,0.13765,57961.0,57960.0,0.27]
[1617718422222,1.0,57971.0,57960.0,0.27]
[1617718422523,1.5,57979.0,57960.0,0.27]
[1617718422524,1.0,57972.0,57960.0,0.27]
[1617718422723,1.0,57975.0,57960.0,0.27]
[1617718422923,1.0,57972.0,57971.0,0.10725655]
[1617718423527,1.5,57974.0,57971.0,0.10725655]
[1617718423828,2.5,57972.0,57933.0,1.0]
[1617718424028,1.5,57970.0,57921.0,0.29858392]
[1617718424324,1.0,57947.0,57920.0,0.29860222]
[1617718424534,1.5,57970.0,57928.0,0.27]
[1617718424535,1.0,57952.0,57928.0,0.27]
[1617718424738,1.0,57952.0,57923.0,1.47]
[1617718424930,0.10725655,57958.0,57951.0,0.10725655]
[1617718425425,0.10725655,57958.0,57933.0,1.0]
[1617718425723,0.10725655,57958.0,57917.0,0.09679]
[1617718426022,0.10725655,57958.0,57916.0,1.5]
[1617718426023,1.0,57952.0,57934.0,0.27]
[1617718426223,0.10725655,57958.0,57934.0,0.27]
[1617718426522,0.10725655,57958.0,57916.0,1.5]
[1617718426724,0.10725655,57958.0,57935.0,0.01]
[1617718426924,0.10725655,57958.0,57957.0,0.10725655]
[1617718427327,0.30725655,57958.0,57927.0,0.27]
[1617718427526,2.90728655,57958.0,57927.0,0.27]
[1617718427927,1.14258,57939.0,57927.0,0.27]
[1617718428126,0.0517,57938.0,57913.0,0.27]
[1617718428426,0.0517,57938.0,57914.0,1.0]
[1617718428727,0.0517,57938.0,57915.0,0.01]
[1617718429025,0.0517,57938.0,57937.0,0.10725655]
[1617718429427,1.0517,57938.0,57937.0,0.10725655]
[1617718429628,0.2517,57938.0,57937.0,0.10725655]
[1617718429828,1.2517,57938.0,57937.0,0.10725655]
[1617718430230,1.2517,57938.0,57901.0,1.0]
[1617718430431,1.36159,57938.0,57900.0,0.29914737]
[1617718430633,1.36159,57938.0,57899.0,1.0]
[1617718430830,1.0,57931.0,57902.0,1.0]
[1617718431030,1.0,57929.0,57928.0,0.10725655]
[1617718431231,1.0,57929.0,57903.0,0.01]
[1617718431731,1.0,57919.0,57903.0,0.01]
[1617718432031,0.13606,57923.0,57899.0,0.27]
[1617718432230,0.2,57922.0,57894.0,1.0]
[1617718432432,0.2,57922.0,57897.0,0.27]
[1617718432634,0.13606,57923.0,57900.0,0.26]
[1617718432831,0.13606,57923.0,57895.0,1.0]
[1617718433034,0.13606,57923.0,57921.0,0.10725655]
[1617718433532,1.0,57927.0,57921.0,0.10725655]
[1617718433732,1.0,57928.0,57921.0,0.10725655]
[1617718434634,1.15131,57926.0,57897.0,1.0]
[1617718434833,1.0,57925.0,57896.0,1.0]
[1617718435033,0.15131,57926.0,57914.0,0.10725655]
[1617718435536,0.15131,57926.0,57915.0,0.01]
[1617718435736,0.0515,57925.0,57915.0,0.01]
[1617718435935,0.15131,57926.0,57915.0,0.01]
[1617718436336,1.0,57925.0,57915.0,0.01]
[1617718437036,1.0,57923.0,57921.0,0.10725655]
[1617718437238,1.0,57929.0,57921.0,0.10725655]
[1617718437538,0.2,57930.0,57921.0,0.10725655]
[1617718438141,1.0,57928.0,57921.0,0.10725655]
[1617718438338,0.2,57927.0,57921.0,0.10725655]
[1617718439038,0.10725655,57922.0,57921.0,0.10725655]
[1617718440041,0.10725655,57922.0,57921.0,1.87725655]
[1617718440341,0.3283892,57952.0,57921.0,2.87725655]
[1617718440541,0.32833461,57953.0,57921.0,2.87725655]
[1617718440743,0.32833461,57953.0,57921.0,2.02014655]
[1617718440942,0.32833461,57953.0,57939.0,0.10725655]
[1617718441144,0.3284229,57958.0,57942.0,1.5]
[1617718441341,0.3284229,57958.0,57947.0,1.0]
[1617718441543,0.0523,57948.0,57947.0,1.0]
[1617718441743,0.32927591,57956.0,57948.0,0.27]
[1617718441943,0.32944695,57958.0,57948.0,0.27]
[1617718442242,0.32944695,57958.0,57942.0,0.27]
[1617718442444,1.0,57962.0,57948.0,0.27]
[1617718442644,1.0,57962.0,57939.0,0.10725655]
[1617718442645,0.32982903,57963.0,57943.0,0.26]
[1617718442843,0.32982903,57963.0,57943.0,1.26]
[1617718443044,0.32982903,57963.0,57957.0,0.10725655]
[1617718443646,0.40310401,57968.0,57958.0,0.01]
[1617718443647,0.3298345,57964.0,57958.0,0.01]
[1617718444347,0.33000843,57965.0,57958.0,0.00897823]
[1617718444548,0.73933169,57959.0,57958.0,0.00897823]
[1617718445449,0.3327085,57959.0,57958.0,1.00897823]
[1617718445648,0.3327085,57959.0,57958.0,2.50897823]
[1617718446448,0.33389872,57960.0,57958.0,2.50897823]
[1617718446848,0.33399166,57961.0,57958.0,1.50897823]
[1617718447049,0.33399166,57961.0,57959.0,1.0]
[1617718447249,0.33418647,57962.0,57959.0,2.5]
[1617718447449,0.33418647,57962.0,57960.0,1.0]
[1617718447650,0.33426202,57963.0,57961.0,1.0]
[1617718447850,0.0515,57962.0,57961.0,2.5]
[1617718448052,0.0515,57962.0,57960.0,0.27]
[1617718448252,0.33450794,57965.0,57962.0,0.27]
[1617718448457,0.33450794,57965.0,57958.0,0.26]
[1617718448652,0.33450794,57965.0,57964.0,1.13299]
[1617718449057,0.4911,57973.0,57964.0,1.13299]
[1617718449058,0.33436155,57967.0,57964.0,0.26024655]
[1617718449355,0.33436155,57967.0,57964.0,1.26024655]
[1617718449559,0.33419576,57966.0,57964.0,1.26024655]
[1617718449756,0.33419576,57966.0,57964.0,0.26024655]
[1617718450057,0.45914646,57966.0,57964.0,1.12725655]
[1617718450458,0.0512,57965.0,57964.0,1.62725655]
[1617718450859,0.0512,57965.0,57964.0,2.62725655]
[1617718451061,0.33419576,57966.0,57964.0,2.77693655]
[1617718451260,0.33448921,57969.0,57964.0,2.77693655]
[1617718451460,0.33448921,57969.0,57965.0,1.0]
[1617718451660,0.33448921,57969.0,57964.0,1.77693655]
[1617718451661,0.33459542,57970.0,57968.0,1.0]
[1617718452060,0.33459542,57970.0,57966.0,0.27]
[1617718452061,0.33459542,57970.0,57966.0,1.27]
[1617718452261,0.33459542,57970.0,57969.0,1.01]
[1617718452461,0.33459542,57970.0,57969.0,1.0]
[1617718452861,0.33459542,57970.0,57969.0,0.27]
[1617718453160,0.33459542,57970.0,57969.0,1.0]
[1617718453361,0.33459542,57970.0,57968.0,1.0]
[1617718453563,0.33459542,57970.0,57969.0,0.27]
[1617718453763,0.33459542,57970.0,57969.0,1.5]
[1617718454062,0.4911,57973.0,57969.0,1.5]
[1617718454063,0.3343011,57972.0,57969.0,2.76]
[1617718454463,0.82545723,57973.0,57969.0,1.76]
[1617718454662,0.82545723,57973.0,57971.0,1.0]
[1617718455063,0.82545723,57973.0,57972.0,1.27]
[1617718455263,0.82545723,57973.0,57972.0,1.37725655]
[1617718455461,0.33435723,57973.0,57972.0,1.10725655]
[1617718455663,0.33463214,57977.0,57972.0,1.37725655]
[1617718455963,0.33463214,57977.0,57972.0,0.37725655]
[1617718456167,0.33441939,57981.0,57972.0,0.37725655]
[1617718456363,0.33441939,57981.0,57976.0,1.0]
[1617718456566,0.33441939,57981.0,57972.0,1.87725655]
[1617718456567,0.33460537,57983.0,57980.0,1.0]
[1617718456966,0.33460537,57983.0,57981.0,0.01]
[1617718457165,0.25855645,57995.0,57981.0,0.01]
[1617718457166,0.334725,57985.0,57981.0,0.01]
[1617718457365,0.334725,57985.0,57982.0,0.24402655]
[1617718457566,0.334725,57985.0,57984.0,1.0]
[1617718458063,0.334725,57985.0,57984.0,1.26897867]
[1617718458265,0.33484979,57987.0,57984.0,1.27]
[1617718458668,0.33484979,57987.0,57985.0,1.5]
[1617718458865,0.33484979,57987.0,57986.0,1.0]
[1617718459166,0.33487647,57988.0,57986.0,1.27]
[1617718459567,0.33489664,57989.0,57986.0,0.27]
[1617718459968,0.33489664,57989.0,57987.0,2.5]
[1617718460268,0.33481662,57988.0,57987.0,1.5]
[1617718460768,0.33500729,57992.0,57987.0,1.51]
[1617718461171,0.33519243,57994.0,57991.0,1.0]
[1617718461369,0.33519243,57994.0,57991.0,1.60725655]
[1617718461569,0.33531139,57996.0,57992.0,0.27]
[1617718461768,0.33531139,57996.0,57993.0,1.0]
[1617718461969,0.33531139,57996.0,57995.0,1.0]
[1617718462171,0.3354931,57999.0,57995.0,1.0]
[1617718462371,0.3878931,57999.0,57995.0,1.01]
[1617718462572,0.33539273,57997.0,57995.0,0.01]
[1617718462972,0.33549046,58000.0,57996.0,1.0]
[1617718463372,0.33549046,58000.0,57999.0,0.10725655]
[1617718463776,0.33549046,58000.0,57999.0,1.11725655]
[1617718463975,0.33549607,58001.0,58000.0,1.0]
[1617718464476,0.33549607,58001.0,58000.0,0.26]
[1617718464777,0.33556776,58002.0,58000.0,1.26]
[1617718465176,0.33556776,58002.0,58000.0,0.26]
[1617718465576,0.33556776,58002.0,58001.0,1.0]
[1617718465778,0.4660272,58013.0,58000.0,0.26]
[1617718465779,0.33430744,58013.0,58002.0,1.5]
[1617718465976,0.33430744,58013.0,58002.0,1.77]
[1617718466177,0.40857735,58018.0,58002.0,1.77]
[1617718466178,0.33435905,58014.0,58009.0,1.0]
[1617718466578,0.33435905,58014.0,58013.0,1.0]
[1617718466779,0.33435905,58014.0,58013.0,1.01]
[1617718466981,0.33474999,58019.0,58013.0,1.01]
[1617718467179,0.33474999,58019.0,58013.0,1.12386]
[1617718467379,0.33474999,58019.0,58018.0,0.10725655]
[1617718467581,0.40967756,58019.0,58018.0,0.10725655]
[1617718467880,0.40967756,58019.0,58018.0,0.37725655]
[1617718468282,0.61518055,58019.0,58018.0,0.37725655]
[1617718468782,0.27963599,58019.0,58018.0,0.37725655]
[1617718469282,0.27990809,58020.0,58018.0,0.37623579]
[1617718469682,0.27977602,58019.0,58018.0,0.37623579]
[1617718470483,0.27988868,58021.0,58018.0,0.37623579]
[1617718470683,0.27988868,58021.0,58019.0,1.5]
[1617718471182,0.27988868,58021.0,58020.0,1.27]
[1617718471387,0.27988868,58021.0,58020.0,0.27]
[1617718471587,0.10725655,58025.0,58020.0,0.27]
[1617718471887,0.23542655,58025.0,58018.0,0.10623579]
[1617718472185,0.2,58021.0,58018.0,0.10623579]
[1617718472487,1.2,58019.0,58018.0,0.10623579]
[1617718472891,2.7,58019.0,58018.0,0.10623579]
[1617718473285,2.7,58019.0,57989.0,2.7937]
[1617718473286,2.7,58019.0,58011.0,0.10725655]
[1617718473686,2.7,58019.0,57989.0,2.7937]
[1617718473687,1.0,58008.0,57989.0,2.7937]
[1617718473887,0.2,58007.0,57989.0,2.7937]
[1617718474288,0.2,58007.0,57990.0,0.3216]
[1617718474688,1.0,58004.0,57990.0,0.3216]
[1617718474889,1.5,58003.0,57990.0,0.27]
[1617718475092,1.12621,57991.0,57990.0,0.27]
[1617718475290,1.0,57990.0,57989.0,0.10725655]
[1617718475490,0.12621,57991.0,57990.0,0.26]
[1617718475890,0.12621,57991.0,57989.0,0.10725655]
[1617718476091,0.2,57990.0,57989.0,0.10725655]
[1617718476494,0.2,57990.0,57989.0,0.37725655]
[1617718477393,0.30725655,57990.0,57989.0,0.37725655]
[1617718478398,0.43084655,57990.0,57989.0,0.37725655]
[1617718479298,0.23084655,57990.0,57989.0,0.37725655]
[1617718479506,0.10725655,57990.0,57989.0,0.37725655]
[1617718493011,0.33514738,58009.0,57989.0,1.37725655]
[1617718493512,0.33517008,58010.0,58008.0,0.10725655]
[1617718494013,0.70764482,58019.0,58009.0,0.26897902]
[1617718494014,0.33529763,58012.0,58009.0,0.26897902]
[1617718494418,0.335621,58017.0,58009.0,0.26897902]
[1617718494815,0.475,58019.0,58009.0,0.26897902]
[1617718494816,0.33564277,58018.0,58009.0,0.26897902]
[1617718495014,0.33564277,58018.0,58014.0,1.0]
[1617718495215,0.475,58019.0,58014.0,1.0]
[1617718495514,0.31073228,58020.0,58018.0,0.10725655]
[1617718495715,0.41051667,58028.0,58018.0,0.10725655]
[1617718496014,0.41051667,58028.0,58019.0,0.27]
[1617718496714,0.10725655,58029.0,58019.0,0.27]
[1617718497116,0.10937802,58027.0,58019.0,0.27]
[1617718497417,0.24079178,58043.0,58019.0,0.27]
[1617718497418,0.10941817,58028.0,58026.0,0.10725655]
[1617718497815,0.41073522,58033.0,58027.0,0.01]
[1617718498416,0.41079771,58035.0,58027.0,0.01]
[1617718498716,0.41100583,58036.0,58027.0,0.01]
[1617718499417,0.41097656,58037.0,58036.0,0.10725655]
[1617718499818,0.41104295,58038.0,58036.0,0.36725655]
[1617718500819,0.41104295,58038.0,58016.0,1.0]
[1617718501019,1.0,58037.0,58002.0,1.0]
[1617718501219,1.0,58025.0,57996.0,1.0]
[1617718501422,0.41326094,58024.0,58010.0,0.10725655]
[1617718501621,1.0,58019.0,58010.0,0.10725655]
[1617718501921,1.5,58019.0,58011.0,0.27]
[1617718502121,1.5,58019.0,57988.0,0.3034182]
[1617718502421,0.12478,58025.0,57984.0,0.30342734]
[1617718502422,1.11026,58011.0,57984.0,0.30342734]
[1617718502822,1.0,58005.0,57984.0,0.30342734]
[1617718503021,0.11026,58011.0,57985.0,0.27]
[1617718503022,1.0,58006.0,57985.0,0.27]
[1617718503222,0.2,58005.0,57980.0,0.01]
[1617718503522,0.2,58005.0,57977.0,1.27]
[1617718503523,0.2,58005.0,57996.0,0.10725655]
[1617718503723,1.0,58003.0,57996.0,0.10725655]
[1617718503923,1.2,58002.0,57997.0,0.01]
[1617718504326,1.7,58002.0,57997.0,0.01]
[1617718504525,1.0,57998.0,57982.0,0.27]
[1617718504726,1.7,57997.0,57982.0,0.27]
[1617718504925,1.7,57997.0,57974.0,0.30346795]
[1617718505325,1.7,57997.0,57983.0,0.27]
[1617718505527,0.10725655,57984.0,57980.0,0.27]
[1617718505726,0.24098655,57984.0,57970.0,0.41075042]
[1617718506128,0.24098655,57984.0,57971.0,0.27]
[1617718507530,0.24098655,57984.0,57983.0,0.10725655]
[1617718507732,0.10725655,57984.0,57983.0,0.10725655]
[1617718507929,0.10725655,57984.0,57983.0,0.11725655]
[1617718508329,0.41291951,57997.0,57983.0,0.11725655]
[1617718508529,0.41423019,57998.0,57983.0,0.11725655]
[1617718509031,0.41430907,57999.0,57983.0,0.11725655]
[1617718509431,0.71368699,58004.0,57983.0,0.11725655]
[1617718509432,0.1113459,57997.0,57983.0,0.11725655]
[1617718509631,0.1113459,57997.0,57985.0,1.0]
[1617718509830,0.1113459,57997.0,57989.0,1.0]
[1617718510031,0.41569054,58002.0,57989.0,1.0]
[1617718510333,0.5278466,58004.0,57991.0,1.0]
[1617718510631,0.5278466,58004.0,57992.0,0.26]
[1617718510831,0.11158248,58004.0,57992.0,0.26]
[1617718511031,0.24251248,58004.0,57981.0,1.0]
[1617718511231,1.0,58002.0,57990.0,0.26]
[1617718511432,1.0,58003.0,57990.0,0.26]
[1617718511632,1.0,58003.0,57999.0,0.10725655]
[1617718511833,1.13093,58004.0,57999.0,0.10725655]
[1617718512137,0.54798676,58004.0,58000.0,0.26]
[1617718512634,1.0,58000.0,57977.0,0.30372405]
[1617718513034,1.0,57991.0,57974.0,0.30373469]
[1617718513335,1.0,57986.0,57978.0,0.27]
[1617718513535,1.0,57986.0,57985.0,0.10725655]
[1617718513735,0.2,57990.0,57985.0,0.10725655]
[1617718514036,0.2,57990.0,57986.0,0.27]
[1617718514537,0.14129,57991.0,57986.0,0.27]
[1617718514538,0.2,57988.0,57986.0,0.27]
[1617718514737,1.2,57987.0,57986.0,0.27]
[1617718514936,0.297,57987.0,57986.0,0.27]
[1617718515137,1.297,57987.0,57986.0,0.27]
[1617718515339,1.41049296,57987.0,57986.0,0.27]
[1617718515538,1.51774951,57987.0,57986.0,0.27]
[1617718516237,1.93589692,57987.0,57986.0,0.27]
[1617718517237,1.73589692,57987.0,57986.0,1.77]
[1617718517437,0.62864037,57987.0,57986.0,2.77]
[1617718517638,0.53164037,57987.0,57986.0,6.2716]
[1617718517841,0.53164037,57987.0,57986.0,4.7716]
[1617718518038,0.53164037,57987.0,57986.0,3.7716]
[1617718518239,0.63921158,58001.0,57986.0,3.7716]
[1617718518240,0.41834217,57990.0,57986.0,3.7716]